Cogmind - Beta 13 @@@ ROGUE MODE // 2024.04.12 @ 21:35:06 Player: SovietPaperclip Result: Self-destructed Performance ------------- Evolutions (1) 500 Regions Visited (4) 800 Robots Destroyed (50) 250 Value Destroyed (1248) 1248 Prototype IDs (3) 60 Alien Tech Used (0) 0 Bonus (22) 22 TOTAL SCORE: 2880 Bonus ------- High Alert Combat Kills 22 Cogmind --------- Core Integrity 302/400 Matter 264/300 Energy 265/265 System Corruption 0% Temperature Cool (0) Movement Walking (190) Ox1 Location -9/Mines Parts ------- > --- POWER (1) -------- Improved Ion Engine > --- PROPULSION (3) --- Aluminum Leg Aluminum Leg > --- UTILITY (3) ------ Improved Heat Sink Large Storage Unit Light Armor Plating > --- WEAPON (2) ------- Grenade Launcher Grenade Launcher > --- INVENTORY (15) --- Improved Ion Engine High-capacity Storage Unit High-capacity Matter Pod (200) High-capacity Matter Pod (148) Improved Targeting Computer Light Armor Plating Hardened Light Armor Plating Particle Cannon Particle Cannon Particle Cannon Advanced Beam Cannon Advanced Beam Cannon Heavy Assault Rifle Mace Peak State ------------ > --- POWER ------------ Improved Ion Engine > --- PROPULSION ------- Aluminum Leg Aluminum Leg > --- UTILITY ---------- Improved Heat Sink Large Storage Unit Light Armor Plating > --- WEAPON ----------- Advanced Beam Cannon Advanced Beam Cannon > --- INVENTORY -------- Improved Ion Engine High-capacity Storage Unit High-capacity Matter Pod High-capacity Matter Pod Improved Targeting Computer Light Armor Plating Hardened Light Armor Plating Particle Cannon Particle Cannon Particle Cannon Heavy Assault Rifle Grenade Launcher Grenade Launcher Mace [Rating: 17] Favorites ----------- Power Improved Ion Engine Engine Improved Ion Engine Propulsion Aluminum Leg Leg Aluminum Leg Utility Light Armor Plating Device Improved Heat Sink Storage Large Storage Unit Protection Light Armor Plating Weapon Assault Rifle Energy Cannon Advanced Beam Cannon Ballistic Gun Assault Rifle Launcher Grenade Launcher Build | -11 -10 -10 -9 -9 ------- Run | Yrd Mat Min Mat Min Slots Evolved 2 | . . . 2 . Power . | . . . . . Propulsion 1 | . . . 1 . Utility 1 | . . . 1 . Weapon . | . . . . . Parts Attached 22 | 6 3 1 10 2 Power 3 | 1 1 . 1 . Engine 3 | 1 1 . 1 . Core . | . . . . . Reactor . | . . . . . Propulsion 4 | 2 . . 2 . Treads . | . . . . . Leg 4 | 2 . . 2 . Wheel . | . . . . . Hover . | . . . . . Flight . | . . . . . Utility 5 | 1 2 1 1 . Device 1 | . . . 1 . Storage 2 | 1 1 . . . Processor . | . . . . . Hackware . | . . . . . Protection 2 | . 1 1 . . Artifact . | . . . . . Weapon 10 | 2 . . 6 2 Energy Gun . | . . . . . Energy Cannon 2 | . . . 2 . Ballistic Gun 5 | 2 . . 3 . Ballistic Cannon . | . . . . . Launcher 3 | . . . 1 2 Special Weapon . | . . . . . Impact Weapon . | . . . . . Slashing Weapon . | . . . . . Piercing Weapon . | . . . . . Special Melee Weapon . | . . . . . Unidentified Prototypes 1 | . . . 1 . Parts Lost 5 | . 1 1 3 . Power 2 | . 1 . 1 . Propulsion 2 | . . . 2 . Utility 1 | . . 1 . . Weapon . | . . . . . Highest Loss Streak 1 | . 1 1 1 . To Critical Strikes . | . . . . . Average Slot Usage (%) 94 | . 99 100 89 88 Engine 12 | . 14 14 10 11 Leg 25 | . 28 28 23 22 Device 6 | . . . 11 11 Storage 12 | . 14 14 11 11 Protection 12 | . 13 14 11 11 Ballistic Gun 23 | . 28 28 20 . Launcher 1 | . . . . 22 Naked Turns . | . . . . . Heaviest Build 39 | 14 30 30 39 39 Greatest Support 30 | 20 20 20 30 20 Greatest Overweight (x) 4 | 4 1 1 3 1 Average Overweight (x) . | . . 1 1 1 Largest Inventory Capacity 15 | 8 15 15 15 15 Average Capacity 12 | 6 8 15 15 15 Most Carried 15 | 4 8 8 15 14 Average Carried 8 | 2 4 7 11 14 Final Capacity 15 | 8 15 15 15 15 Final Carried 14 | 2 8 8 14 14 Class Distribution -------------------- 59% | Mutant 40% | Scavenger-Mutant Dominant Class ---------------- Mutant | -10/Materials Mutant | -10/Mines Scavenger-Mutant | -9/Materials Scavenger-Mutant | -9/Mines Resources | -11 -10 -10 -9 -9 ----------- Run | Yrd Mat Min Mat Min Matter Collected 1548 | 260 479 83 722 4 Remotely . | . . . . . Salvage Created 1697 | . 487 83 1123 4 Parts 113 | . 38 4 71 . Haulers Intercepted 3 | . 1 . 2 . Recyclers Shooed 3 | . . 1 2 . Parts Field Recycled . | . . . . . Retrieved Matter . | . . . . . Parts Self-Destructed . | . . . . . Prevented . | . . . . . Kills | -11 -10 -10 -9 -9 ------- Run | Yrd Mat Min Mat Min Combat Hostiles Destroyed 39 | . 13 2 23 1 Guns 29 | . 13 2 14 . AOE 10 | . . . 9 1 Classes Destroyed 11 | . 5 . 5 1 Worker 1 | . 1 . . . Hauler 3 | . 1 . 2 . Recycler 2 | . . . 2 . Operator 1 | . . . 1 . Watcher 5 | . 2 . 3 . Swarmer 12 | . 6 . 6 . Grunt 16 | . 7 2 7 . Brawler 1 | . . . 1 . Duelist 1 | . . . 1 . Sentry 8 | . . . 8 . Assembled 1 | . . . . 1 Best Kill Streak 14 | . 4 2 14 1 Combat Bots Only 11 | . 3 2 11 1 Max Kills in Single Turn 3 | . 1 1 3 1 Gunslinging . | . . . . . Exploded 3 | . . . 3 1 Melee . | . . . . . Uniques/NPCs Destroyed . | . . . . . Combat | -11 -10 -10 -9 -9 -------- Run | Yrd Mat Min Mat Min Hostile Shots Fired 144 | . 46 13 84 1 Missed 43 | . 11 4 27 1 Damage Taken 1250 | . 389 124 715 22 Core 186 | . 62 26 97 1 Absorbed by Shields . | . . . . . Core Remaining (%) 82 | 100 . 64 . . Volleys Fired 133 | . 46 10 76 1 Largest 2 | . 2 2 2 2 Hottest 91 | . 40 40 91 60 Shots Fired 265 | . 92 20 151 2 Gun 247 | . 92 20 135 . Cannon 8 | . . . 8 . Launcher 10 | . . . 8 2 Special . | . . . . . Kinetic 247 | . 92 20 135 . Thermal 8 | . . . 8 . Explosive 10 | . . . 8 2 Electromagnetic . | . . . . . Robot Hit Streak 8 | . 5 8 8 1 Robot Miss Streak 4 | . 3 1 4 1 Penetration Max . | . . . . . Secondary Targets 1 | . . . 1 . Max Gunslinging Chain 1 | . . . 1 . Shots Hit Robots 161 | . 50 15 95 1 Core Hits 85 | . 26 6 51 2 Critical Kills . | . . . . . Critical Parts Destroyed 1 | . . . 1 . Critical Strikes 1 | . . . 1 . Destroy 1 | . . . 1 . Melee Attacks . | . . . . . Impact . | . . . . . Slashing . | . . . . . Piercing . | . . . . . Sneak Attacks . | . . . . . Combat Hostiles . | . . . . . Follow-up Attacks . | . . . . . Damage Inflicted 2705 | . 617 178 1840 70 Guns 2038 | . 617 178 1243 . Cannons 101 | . . . 101 . Explosions 566 | . . . 496 70 Melee . | . . . . . Ramming . | . . . . . Kinetic 2038 | . 617 178 1243 . Thermal 101 | . . . 101 . Explosive 566 | . . . 496 70 Electromagnetic . | . . . . . Impact . | . . . . . Slashing . | . . . . . Piercing . | . . . . . Highest Corruption . | . . . . . Average Corruption . | . . . . . Corruption Purged . | . . . . . Corruption Blocked . | . . . . . Overload Shots . | . . . . . Overflow Damage 14 | . . . 14 . Projectiles 8 | . . . 8 . Explosions 6 | . . . 6 . Melee . | . . . . . Knockbacks . | . . . . . Impact . | . . . . . Kinetic . | . . . . . Secondary . | . . . . . Self-Inflicted Damage 23 | . . . . 23 Shots 2 | . . . . 2 Rammed . | . . . . . Targets Rammed . | . . . . . Kicked . | . . . . . Crushed . | . . . . . Highest Temperature 27 | . 27 9 6 . Average Temperature 5 | . 6 4 4 . Received Heat Transfer 519 | . 168 72 279 . Siege Activations . | . . . . . Robots Corrupted . | . . . . . Combat Hostiles . | . . . . . Parts Fried . | . . . . . Impact Corruptions . | . . . . . Robots Melted . | . . . . . Combat Hostiles . | . . . . . Parts Melted . | . . . . . Heat Transferred 185 | . . . 185 . Parts Sabotaged . | . . . . . Parts Stolen . | . . . . . Parts Stripped . | . . . . . Power Chain Reactions . | . . . . . Alert | -11 -10 -10 -9 -9 ------- Run | Yrd Mat Min Mat Min Peak Influence 455 | . 304 62 455 147 Initial 120 | . . 22 24 120 Average 174 | . 69 55 283 140 Maximum Alert Level 2 | . 1 . 2 . Low Security (%) 54 | 100 89 100 15 100 Level 1 42 | . 10 . 77 . Level 2 3 | . . . 7 . Level 3 . | . . . . . Level 4 . | . . . . . Level 5 . | . . . . . High Security . | . . . . . Max Security . | . . . . . Squads Dispatched 3 | . 2 . 1 . Investigation 1 | . 1 . . . Extermination . | . . . . . Reinforcement 2 | . 1 . 1 . Assault . | . . . . . Garrison . | . . . . . Intercept . | . . . . . Searches Triggered . | . . . . . Construction Impeded . | . . . . . Haulers Reinforced . | . . . . . Active Scanning Responses . | . . . . . Cargo Convoy Interrupts . | . . . . . Stealth | -11 -10 -10 -9 -9 --------- Run | Yrd Mat Min Mat Min Distress Signals 6 | . 1 . 5 . Communications Jammed . | . . . . . Distress Signals . | . . . . . Times Spotted 52 | . 18 2 31 1 Peak Tracking Total 6 | . 4 2 6 1 Tactical Retreats 1 | . . . 1 . Traps | -11 -10 -10 -9 -9 ------- Run | Yrd Mat Min Mat Min Traps Triggered . | . . . . . Indirectly . | . . . . . Trap Hack Attempts . | . . . . . Triggered . | . . . . . Disarmed 6 | . 6 . . . Reprogrammed . | . . . . . Reused . | . . . . . Traps Extracted . | . . . . . Installed . | . . . . . Triggered . | . . . . . Machines | -11 -10 -10 -9 -9 ---------- Run | Yrd Mat Min Mat Min Machines Disabled 1 | . . . 1 . Max in Single Turn 1 | . . . 1 . Machines Repaired . | . . . . . Machines Dismantled . | . . . . . Machines Sabotaged . | . . . . . Overloaded Fab Kills . | . . . . . Hacking | -11 -10 -10 -9 -9 --------- Run | Yrd Mat Min Mat Min Machines Accessed 12 | . 5 . 7 . Terminals 12 | . 5 . 7 . Fabricators . | . . . . . Repair Stations . | . . . . . Recycling Units . | . . . . . Scanalyzers . | . . . . . Garrison Access . | . . . . . Total Hacks 26 | . 11 . 15 . Successful 16 | . 6 . 10 . Failed 10 | . 5 . 5 . Catastrophic 3 | . 1 . 2 . Database Lockouts . | . . . . . Manual 17 | . 7 . 10 . Terminals 26 | . 11 . 15 . Fabricators . | . . . . . Repair Stations . | . . . . . Recycling Units . | . . . . . Scanalyzers . | . . . . . Garrison Access . | . . . . . Terminal Hacks 7 | . 2 . 5 . Prototype ID Bank 1 | . . . 1 . Unreport Threat 1 | . 1 . . . Disarm Traps 1 | . 1 . . . Hauler Manifests 1 | . . . 1 . Registered Components 1 | . . . 1 . Zone Layout 2 | . . . 2 . Fabricator Hacks . | . . . . . Repair Station Hacks . | . . . . . Recycling Unit Hacks . | . . . . . Scanalyzer . | . . . . . Garrison Access Hacks . | . . . . . Unauthorized Hacks 9 | . 4 . 5 . Terminals 9 | . 4 . 5 . Botnet 9 | . 4 . 5 . Fabricators . | . . . . . Repair Stations . | . . . . . Recycling Units . | . . . . . Scanalyzers . | . . . . . Garrison Access . | . . . . . Data Cores Recovered . | . . . . . Used . | . . . . . Hacking Detections 9 | . 5 . 4 . Full Trace Events 1 | . 1 . . . Feedback Events . | . . . . . Feedback Blocked . | . . . . . Robot Schematics Acquired . | . . . . . Robots Built . | . . . . . Authchips . | . . . . . Time . | . . . . . Total Robot Build Rating . | . . . . . Part Schematics Acquired . | . . . . . Parts Built . | . . . . . Authchips . | . . . . . Time . | . . . . . Total Part Build Rating . | . . . . . Parts Repaired . | . . . . . Time . | . . . . . Parts Recycled . | . . . . . Recycled Matter . | . . . . . Retrieved Matter . | . . . . . Retrieved Components . | . . . . . Parts Scanalyzed . | . . . . . Part Schematics Acquired . | . . . . . Parts Damaged . | . . . . . Bothacking | -11 -10 -10 -9 -9 ------------ Run | Yrd Mat Min Mat Min Used RIF Installer . | . . . . . Robots Hacked . | . . . . . Non-combat . | . . . . . Combat . | . . . . . Robot Hacks Applied . | . . . . . Relay Couplers Released . | . . . . . Fabnet Peak Effective % . | . . . . . Robots Rewired . | . . . . . Allies Hacked . | . . . . . Hacks Repelled . | . . . . . Allies | -11 -10 -10 -9 -9 -------- Run | Yrd Mat Min Mat Min Total Allies . | . . . . . Largest Group . | . . . . . Highest-Rated Group . | . . . . . Highest-Rated Ally . | . . . . . Total Orders . | . . . . . Ally Attacks . | . . . . . Total Damage . | . . . . . Kills . | . . . . . Allies Corrupted . | . . . . . Allies Melted . | . . . . . Intel | -11 -10 -10 -9 -9 ------- Run | Yrd Mat Min Mat Min Robot Analysis Total . | . . . . . Derelict Logs Recovered 1 | . . 1 . . Drone Launches . | . . . . . Drone Recoveries . | . . . . . Exploration | -11 -10 -10 -9 -9 ------------- Run | Yrd Mat Min Mat Min Turns Passed 2644 | 61 797 379 1315 92 Spaces Moved 1283 | 37 486 181 534 45 Core 21 | 21 . . . . Treads . | . . . . . Legs 1262 | 16 486 181 534 45 Wheels . | . . . . . Hover . | . . . . . Flight . | . . . . . Fastest Speed 50 | 50 120 190 190 190 Average Speed 163 | 111 125 190 190 190 Slowest Speed 330 | 250 190 190 330 190 Overloaded Moves . | . . . . . Propulsion Burnouts . | . . . . . Robots Hopped . | . . . . . Cave-ins Triggered . | . . . . . Exploration Rate (%) 42 | 4 84 54 61 9 Regions Visited 4 Branch Regions 2 Pre-discovered Areas . | . . . . . Known Exits Taken . | . . . . . Unknown Exits Taken 4 | 1 1 1 1 . Scrap Searched 1 | . . 1 . . Spaces Dug . | . . . . . Terrain Destroyed 55 | . . . 37 18 Melee . | . . . . . Projectile . | . . . . . AOE 55 | . . . 37 18 Terrain Rammed . | . . . . . Walls Destroyed . | . . . . . Machines Disabled . | . . . . . Actions | -11 -10 -10 -9 -9 --------- Run | Yrd Mat Min Mat Min Total 1566 | 57 580 197 684 48 Wait 85 | 7 38 3 37 . Move 1279 | 36 485 180 533 45 Hop . | . . . . . Pick Up 37 | 8 8 2 19 . Fast Attach . | . . . . . Attach 14 | 6 2 1 5 . Detach . | . . . . . Swap 8 | . 1 . 5 2 Drop 10 | . . 1 9 . Fire 133 | . 46 10 76 1 Melee . | . . . . . Ram . | . . . . . Kick . | . . . . . Crush . | . . . . . Escape Stasis . | . . . . . Rewire . | . . . . . Trap . | . . . . . Miscellaneous . | . . . . . Route ------- -11/Scrapyard -10/Materials (discovered 4 exits: *Mat x3 / [*Min]) -10/Mines -9/Materials (discovered 2 exits: [*Mat] / [*Min]) -9/Mines History --------- Turn | Location | Event 37 | -11/Scrapyard | Discovered new exit (range 15) 62 | -11/Scrapyard | Entered Materials 175 | -10/Materials | Discovered new exit (range 4) 315 | -10/Materials | Build established: Mutant 423 | -10/Materials | Discovered new exit (range 4) 794 | -10/Materials | Discovered new exit (range 14) 832 | -10/Materials | Discovered new exit (range 15) 859 | -10/Materials | Entered Mines 1025 | -10/Mines | YI-UF0 nonchalantly dropped a Grenade Launcher on the ground 1092 | -10/Mines | Learned Materials trap positions 1230 | -10/Mines | Discovered new exit (range 5) 1238 | -10/Mines | Entered Materials 1238 | -9/Materials | Evolved 2 slots: Propulsion x1, Utility x1 1239 | -9/Materials | Loaded intel: 15 trap records 1392 | -9/Materials | Destroyed 11 combat bots 1622 | -9/Materials | Discovered new exit (range 12) 1871 | -9/Materials | Build established: Scavenger-Mutant 2004 | -9/Materials | Discovered new exit (range 16) 2553 | -9/Materials | Entered Mines 2554 | -9/Mines | Assembled infested the area 2645 | -9/Mines | Self-destructed Last Messages --------------- 02516_ K-01 Serf collects debris. 02518_ Acquired Particle Cannon. 02519_ Dropped Hvy. Assault Rifle. 02521_ R-06 Scavenger collects Hvy. Assault Rifle. 02521_ K-01 Serf collects debris. 02524_ R-06 Scavenger collects Sml. Storage Unit. 02526_ K-01 Serf collects debris. 02532_ Acquired 53 matter. 02533_ K-01 Serf collects debris. LOCATION=UNKNOWN GOAL=ESCAPE 02554_ ALERT: Infestation in the mines, dispatching Demolisher response squad. 02575_ as-66215 destroyed. 02584_ Acquired 4 matter. 02587_ K-01 Serf collects debris. 02591_ The unstable cave ceiling collapses. 02594_ K-01 Serf collects debris. Map ----- +----------------------------------------------------+ | ???????????????????????????????????????????? | | ???????????????????????????????????????????? | | ???????????????????????????????????????????? | | ????????????????????????????????????###????? | | ???????????????????????????????????## ##???? | | ???????????????????????????????????# ###?? | | ???????????????????????????????????# ##? | | ???????????????????????????????????# #? | | ??????????????????????# #######????# #? | | ??????????????????????# #???## #? | | ??????????????????????#### ## #???# ##? | | ????????????????????????????# #???# ###?? | | ????????????????????????????# #???# ##???? | | ????????????????????????????# #???# #????? | | ????????????????????????????# #???## ##???? | | ????????????????????????????# ###### #???? | | ????????????????????????????# # #???? | | ??????????????????????????### ## #???? | | ??????????????????????##### #???? | | ??????????????????????# # ##???? | | ??????????????????????# " ####????? | | ??????????????????????# ## ####???????? | | ??????????????????????# ### ##??????????? | | ??????????????????????# #?#####???????????? | | ??????????????????????# ####??????????????? | | ??????????????????????# @ #??????????????? | | ??????????????????????# #??????????????? | | ??????????????????????#### #??????????????? | | ?????????????????????????? #??????????????? | | ?????????????????????????? ??????????????? | | ?????????????????????????? # ?????????????? | | ??????????????????????????? ## ????????????? | | ??????????????????????????? ? ???????????? | | ??????????????????????????? ?? ??????????? | | ??????????????????????????? k?? #?????????? | | ???????????????????????????? ???d?????????? | | ???????????????????????????? ?? "????????? | | ???????????????????????????? #???"????????? | | ???????????????????????????? #????????????? | | ????????????????????????????? ?????????????? | | ???????????????????????????????????????????? | | ???????????????????????????????????????????? | | ???????????????????????????????????????????? | | ???????????????????????????????????????????? | | ???????????????????????????????????????????? | | ???????????????????????????????????????????? | | ???????????????????????????????????????????? | | ???????????????????????????????????????????? | | ???????????????????????????????????????????? | | ???????????????????????????????????????????? | +----------------------------------------------------+ Best States ------------- Heat Dissipation 42 Energy Generation 12 Energy Capacity 265 Matter Stores 300 Matter Capacity 300 Sight Range 16 Terrain Scan Density 10 Armor Coverage 150 Evasion (%) 55 Item Schematics ----------------- None Robot Schematics ------------------ None Fabricated ------------ Nothing Alien Tech Used ----------------- None Achievements -------------- None Challenges ------------ None Game ------ Seed IntegratedGravitonFlakker Manual? 0 Play Time 00:16:24 Cumulative 80.2 hours Start 2024.04.12 @ 17:09:11 End 2024.04.12 @ 21:35:06 Sessions 5 Manual Loads 0 Difficulty Rogue Special Mode None Game No. 91 Rogue 91 Adventurer 0 Explorer 0 Win Type - Total 1 Types 1/0/0/0/0/0/0/0/0 Lore% 41 Gallery% 46 Achievement% 43 Wizard Run 0 Options --------- Layout 1 ASCII 0 Keyboard 0 Movement Mouse Keybinds 0 Fullscreen 2 Font 32/Smallcaps Map View 50x40 Zoom Use 0% Tactical HUD 1 Map Filters NONE Filters NONE Steam 1 RUN: 231600c4-a8a1-4972-b832-b28bcccc6dc7